[Event "*** Titled Tuesday Blitz"]
[Site "Chess.com"]
[Date "2020.03.03"]
[Round "5"]
[White "SnekkerAndersen"]
[Black "DACF2905"]
[Result "1-0"]
[WhiteElo "2490"]
[BlackElo "2211"]
[TimeControl "180+1"]
[EndTime "9:50:41 PST"]
[Termination "SnekkerAndersen won on time"]

1. d4 {[%clk 0:03:00.9]} 1... Nf6 {[%clk 0:02:58.8]} 2. Bf4 {[%clk 0:03:01.2]}
2... e6 {[%clk 0:02:57.9]} 3. e3 {[%clk 0:03:01.2]} 3... c5 {[%clk 0:02:56.4]}
4. c3 {[%clk 0:03:01.3]} 4... Qb6 {[%clk 0:02:55.2]} 5. Qb3 {[%clk 0:03:01]}
5... Nc6 {[%clk 0:02:53.5]} 6. Qxb6 {[%clk 0:02:59.4]} 6... axb6 {[%clk
0:02:54.4]} 7. Bc7 {[%clk 0:03:00]} 7... cxd4 {[%clk 0:02:52.5]} 8. exd4 {[%clk
0:02:59.5]} 8... Nd5 {[%clk 0:02:51.4]} 9. Bg3 {[%clk 0:02:57.3]} 9... Be7
{[%clk 0:02:49.4]} 10. Nd2 {[%clk 0:02:54.2]} 10... d6 {[%clk 0:02:46]} 11. Ngf3
{[%clk 0:02:53.9]} 11... Nf6 {[%clk 0:02:44.2]} 12. Nc4 {[%clk 0:02:49.3]} 12...
Ne4 {[%clk 0:02:42.4]} 13. Nxb6 {[%clk 0:02:47.3]} 13... Rb8 {[%clk 0:02:41.5]}
14. Bd3 {[%clk 0:02:44.2]} 14... Nxg3 {[%clk 0:02:22.4]} 15. hxg3 {[%clk
0:02:45.1]} 15... h6 {[%clk 0:02:21.3]} 16. O-O {[%clk 0:02:42.8]} 16... Bd8
{[%clk 0:02:16.2]} 17. Nxc8 {[%clk 0:02:41.7]} 17... Rxc8 {[%clk 0:02:14.9]} 18.
d5 {[%clk 0:02:39.6]} 18... exd5 {[%clk 0:01:41.6]} 19. Rfe1+ {[%clk 0:02:37.1]}
19... Kf8 {[%clk 0:01:40.4]} 20. Rad1 {[%clk 0:02:36.4]} 20... Bf6 {[%clk
0:01:39.4]} 21. Bf5 {[%clk 0:02:32]} 21... Ra8 {[%clk 0:01:37.6]} 22. a3 {[%clk
0:02:30.7]} 22... d4 {[%clk 0:01:34]} 23. cxd4 {[%clk 0:02:28.6]} 23... g6
{[%clk 0:01:33.6]} 24. Be4 {[%clk 0:00:59.9]} 1-0

[Event "*** Titled Tuesday Blitz"]
[Site "Chess.com"]
[Date "2020.03.03"]
[Round "5"]
[White "Hubbery"]
[Black "MokshAD1603"]
[Result "0-1"]
[WhiteElo "2544"]
[BlackElo "2208"]
[TimeControl "180+1"]
[EndTime "9:50:43 PST"]
[Termination "MokshAD1603 won by resignation"]

1. d4 {[%clk 0:01:54.6]} 1... Nf6 {[%clk 0:02:57.8]} 2. c4 {[%clk 0:01:55]} 2...
g6 {[%clk 0:02:57.7]} 3. Nc3 {[%clk 0:01:55.5]} 3... d5 {[%clk 0:02:58]} 4. Bg5
{[%clk 0:01:55.2]} 4... Bg7 {[%clk 0:02:57.3]} 5. Bxf6 {[%clk 0:01:55]} 5...
Bxf6 {[%clk 0:02:58.2]} 6. cxd5 {[%clk 0:01:55.9]} 6... c5 {[%clk 0:02:56.1]} 7.
dxc5 {[%clk 0:01:54.8]} 7... Nd7 {[%clk 0:02:56.4]} 8. c6 {[%clk 0:01:52.2]}
8... Nb6 {[%clk 0:02:45.8]} 9. e3 {[%clk 0:01:41.7]} 9... O-O {[%clk 0:02:43.2]}
10. Nf3 {[%clk 0:01:37.2]} 10... Bxc3+ {[%clk 0:02:31.3]} 11. bxc3 {[%clk
0:01:36.6]} 11... Nxd5 {[%clk 0:02:32.2]} 12. cxb7 {[%clk 0:01:32.8]} 12... Bxb7
{[%clk 0:02:33.1]} 13. c4 {[%clk 0:01:30.3]} 13... Nb4 {[%clk 0:02:32.3]} 14. a3
{[%clk 0:01:17.7]} 14... Qxd1+ {[%clk 0:02:29]} 15. Rxd1 {[%clk 0:01:17.9]}
15... Nc2+ {[%clk 0:02:25.9]} 16. Kd2 {[%clk 0:01:18.2]} 16... Nxa3 {[%clk
0:02:21.9]} 17. Kc3 {[%clk 0:01:18.2]} 17... Rac8 {[%clk 0:02:11.3]} 18. Ra1
{[%clk 0:01:10]} 18... Nb5+ {[%clk 0:02:10.1]} 19. Kb4 {[%clk 0:01:08.1]} 19...
Nd6 {[%clk 0:02:04.5]} 20. Rxa7 {[%clk 0:01:05.2]} 20... Rb8 {[%clk 0:02:04.6]}
21. Kc3 {[%clk 0:00:35.4]} 21... Ne4+ {[%clk 0:02:04.2]} 22. Kc2 {[%clk
0:00:35.6]} 22... Nxf2 {[%clk 0:02:05.1]} 23. Rg1 {[%clk 0:00:35.9]} 23... Rfd8
{[%clk 0:02:02.3]} 24. Be2 {[%clk 0:00:31.3]} 24... Be4+ {[%clk 0:01:57.3]} 25.
Kc3 {[%clk 0:00:27.7]} 25... Bf5 {[%clk 0:01:53.5]} 26. Nd4 {[%clk 0:00:11.7]}
26... Ne4+ {[%clk 0:01:52.6]} 27. Kc2 {[%clk 0:00:12.3]} 27... Ng3+ {[%clk
0:01:43.5]} 28. Nxf5 {[%clk 0:00:11.1]} 28... Nxf5 {[%clk 0:01:43]} 29. Rga1
{[%clk 0:00:05.3]} 29... Nxe3+ {[%clk 0:01:41.8]} 30. Kc3 {[%clk 0:00:05.7]}
30... e6 {[%clk 0:01:30.6]} 31. g3 {[%clk 0:00:04.8]} 31... Rbc8 {[%clk
0:01:28]} 32. Re7 {[%clk 0:00:03.3]} 32... Nd5+ {[%clk 0:01:28]} 0-1

[Event "*** Titled Tuesday Blitz"]
[Site "Chess.com"]
[Date "2020.03.03"]
[Round "5"]
[White "Palacios-LLera"]
[Black "sganerdene"]
[Result "1-0"]
[WhiteElo "2528"]
[BlackElo "2682"]
[TimeControl "180+1"]
[EndTime "9:50:46 PST"]
[Termination "Palacios-LLera won by checkmate"]

1. d4 {[%clk 0:03:00.9]} 1... Nf6 {[%clk 0:02:59.2]} 2. Nf3 {[%clk 0:03:00.9]}
2... g6 {[%clk 0:02:59.3]} 3. c3 {[%clk 0:03:01.3]} 3... Bg7 {[%clk 0:02:59.8]}
4. Bg5 {[%clk 0:03:01.5]} 4... O-O {[%clk 0:03:00.4]} 5. Nbd2 {[%clk 0:03:01.7]}
5... d6 {[%clk 0:03:00.5]} 6. e4 {[%clk 0:03:01.8]} 6... c5 {[%clk 0:03:00.9]}
7. dxc5 {[%clk 0:03:01.3]} 7... dxc5 {[%clk 0:03:01.4]} 8. Be2 {[%clk
0:03:01.7]} 8... Nc6 {[%clk 0:03:01.8]} 9. O-O {[%clk 0:03:01.7]} 9... Qc7
{[%clk 0:03:02.3]} 10. Qc2 {[%clk 0:03:01.9]} 10... Nh5 {[%clk 0:03:00.2]} 11.
Rfe1 {[%clk 0:03:00.2]} 11... e5 {[%clk 0:02:57.7]} 12. a4 {[%clk 0:02:53.9]}
12... Be6 {[%clk 0:02:57.4]} 13. Nc4 {[%clk 0:02:52.9]} 13... h6 {[%clk
0:02:56.5]} 14. Bh4 {[%clk 0:02:52.4]} 14... g5 {[%clk 0:02:56.6]} 15. Bg3
{[%clk 0:02:52.6]} 15... Nf4 {[%clk 0:02:55.3]} 16. Bf1 {[%clk 0:02:52.7]} 16...
Rfd8 {[%clk 0:02:49.8]} 17. Ne3 {[%clk 0:02:52]} 17... Ne7 {[%clk 0:02:47.3]}
18. Nd2 {[%clk 0:02:51.3]} 18... h5 {[%clk 0:02:29]} 19. f3 {[%clk 0:02:50.6]}
19... Neg6 {[%clk 0:02:26.9]} 20. Bf2 {[%clk 0:02:49.2]} 20... h4 {[%clk
0:02:09.6]} 21. Red1 {[%clk 0:02:47.3]} 21... a6 {[%clk 0:02:05.9]} 22. a5
{[%clk 0:02:44.4]} 22... Qe7 {[%clk 0:02:00.1]} 23. Ndc4 {[%clk 0:02:43.4]}
23... Nf8 {[%clk 0:01:55.1]} 24. Nb6 {[%clk 0:02:33.2]} 24... Rab8 {[%clk
0:01:55.2]} 25. Bc4 {[%clk 0:02:32.8]} 25... Qf6 {[%clk 0:01:43.6]} 26. Bxe6
{[%clk 0:02:30]} 26... fxe6 {[%clk 0:01:41.9]} 27. Ng4 {[%clk 0:02:23]} 27...
Qf7 {[%clk 0:01:41.9]} 28. Bxc5 {[%clk 0:02:15.8]} 28... N8g6 {[%clk 0:01:41.9]}
29. h3 {[%clk 0:02:13.8]} 29... Qc7 {[%clk 0:01:32.8]} 30. Be3 {[%clk
0:02:10.8]} 30... Kh7 {[%clk 0:01:26.5]} 31. Rxd8 {[%clk 0:02:04.4]} 31... Rxd8
{[%clk 0:01:26.3]} 32. Rd1 {[%clk 0:02:05]} 32... Rxd1+ {[%clk 0:01:17.1]} 33.
Qxd1 {[%clk 0:02:04.9]} 33... Nf8 {[%clk 0:01:14.5]} 34. Qd2 {[%clk 0:01:45.8]}
34... Kg6 {[%clk 0:01:09.7]} 35. b4 {[%clk 0:01:41.3]} 35... Qc6 {[%clk
0:01:06.2]} 36. c4 {[%clk 0:01:37.4]} 36... Qa4 {[%clk 0:01:05.5]} 37. Kh2
{[%clk 0:01:30.5]} 37... Qb3 {[%clk 0:01:02.5]} 38. Bxf4 {[%clk 0:01:21]} 38...
exf4 {[%clk 0:01:01.6]} 39. e5 {[%clk 0:01:20.8]} 39... Kf7 {[%clk 0:00:54]} 40.
c5 {[%clk 0:01:14.1]} 40... Ng6 {[%clk 0:00:40.9]} 41. Qd7+ {[%clk 0:01:11]}
41... Kg8 {[%clk 0:00:41.1]} 42. Nf6+ {[%clk 0:01:06.7]} 42... Bxf6 {[%clk
0:00:41.3]} 43. exf6 {[%clk 0:01:06.8]} 43... Ne5 {[%clk 0:00:32.1]} 44. Qg7#
{[%clk 0:01:06]} 1-0

[Event "*** Titled Tuesday Blitz"]
[Site "Chess.com"]
[Date "2020.03.03"]
[Round "5"]
[White "lestri"]
[Black "Hamisandwich"]
[Result "1-0"]
[WhiteElo "2506"]
[BlackElo "2668"]
[TimeControl "180+1"]
[EndTime "9:50:53 PST"]
[Termination "lestri won on time"]

1. c4 {[%clk 0:03:00.9]} 1... Nc6 {[%clk 0:02:58.3]} 2. d4 {[%clk 0:02:59.9]}
2... d6 {[%clk 0:02:57.8]} 3. d5 {[%clk 0:02:59.1]} 3... Ne5 {[%clk 0:02:54.3]}
4. e4 {[%clk 0:02:58.8]} 4... Nf6 {[%clk 0:02:50.9]} 5. Nc3 {[%clk 0:02:58]}
5... g6 {[%clk 0:02:44.8]} 6. f4 {[%clk 0:02:57.7]} 6... Ned7 {[%clk 0:02:42.9]}
7. Nf3 {[%clk 0:02:57.6]} 7... Bg7 {[%clk 0:02:40.1]} 8. Bd3 {[%clk 0:02:57.3]}
8... O-O {[%clk 0:02:39.4]} 9. O-O {[%clk 0:02:57.3]} 9... e6 {[%clk 0:02:22.5]}
10. Kh1 {[%clk 0:02:43.6]} 10... exd5 {[%clk 0:02:04.5]} 11. cxd5 {[%clk
0:02:43]} 11... Nc5 {[%clk 0:02:04.1]} 12. Bc2 {[%clk 0:02:42.6]} 12... c6
{[%clk 0:01:56.1]} 13. dxc6 {[%clk 0:02:36.1]} 13... bxc6 {[%clk 0:01:57]} 14.
Be3 {[%clk 0:02:36.4]} 14... Ba6 {[%clk 0:01:49.1]} 15. Re1 {[%clk 0:02:33.4]}
15... Ng4 {[%clk 0:01:32.5]} 16. Bg1 {[%clk 0:02:30.7]} 16... Ne6 {[%clk
0:01:32.6]} 17. Qd2 {[%clk 0:02:28.3]} 17... Bh6 {[%clk 0:01:26.2]} 18. g3
{[%clk 0:02:27.3]} 18... Qc7 {[%clk 0:01:02.5]} 19. Rad1 {[%clk 0:02:25.3]}
19... Rfd8 {[%clk 0:00:58.3]} 20. h3 {[%clk 0:02:20.9]} 20... Nf6 {[%clk
0:00:57.8]} 21. Be3 {[%clk 0:02:17.4]} 21... d5 {[%clk 0:00:51.1]} 22. e5 {[%clk
0:02:16.1]} 22... Ne4 {[%clk 0:00:49.3]} 23. Qg2 {[%clk 0:02:10.4]} 23... Nxc3
{[%clk 0:00:38.5]} 24. bxc3 {[%clk 0:02:09.4]} 24... Qa5 {[%clk 0:00:39.1]} 25.
Qd2 {[%clk 0:01:42.1]} 25... c5 {[%clk 0:00:34.7]} 26. f5 {[%clk 0:01:41.4]}
26... Bxe3 {[%clk 0:00:33]} 27. Qxe3 {[%clk 0:01:41.7]} 27... Ng7 {[%clk
0:00:20.7]} 28. e6 {[%clk 0:01:36.2]} 28... fxe6 {[%clk 0:00:20.4]} 29. f6
{[%clk 0:01:35.9]} 29... d4 {[%clk 0:00:20.1]} 30. Qe4 {[%clk 0:01:28.9]} 30...
Bc4 {[%clk 0:00:10.2]} 31. Bb3 {[%clk 0:01:25.8]} 31... Bxb3 {[%clk 0:00:06.7]}
32. axb3 {[%clk 0:01:25.1]} 32... Qxc3 {[%clk 0:00:04.9]} 33. fxg7 {[%clk
0:01:23.4]} 1-0

[Event "*** Titled Tuesday Blitz"]
[Site "Chess.com"]
[Date "2020.03.03"]
[Round "5"]
[White "floplover"]
[Black "bilelou"]
[Result "1-0"]
[WhiteElo "2326"]
[BlackElo "2557"]
[TimeControl "180+1"]
[EndTime "9:50:53 PST"]
[Termination "floplover won by resignation"]

1. d4 {[%clk 0:03:00.9]} 1... Nf6 {[%clk 0:02:55.3]} 2. c4 {[%clk 0:02:59.2]}
2... e6 {[%clk 0:02:56.2]} 3. Nc3 {[%clk 0:02:58.6]} 3... Bb4 {[%clk 0:02:54.8]}
4. Qc2 {[%clk 0:02:58.1]} 4... c5 {[%clk 0:02:43.8]} 5. dxc5 {[%clk 0:02:57.8]}
5... O-O {[%clk 0:02:39.4]} 6. Nf3 {[%clk 0:02:51.9]} 6... Bxc5 {[%clk
0:02:39.2]} 7. Bg5 {[%clk 0:02:51.2]} 7... Be7 {[%clk 0:02:38.4]} 8. Rd1 {[%clk
0:02:45.2]} 8... b6 {[%clk 0:02:37.1]} 9. e4 {[%clk 0:02:42]} 9... Bb7 {[%clk
0:02:35]} 10. Bd3 {[%clk 0:02:39]} 10... h6 {[%clk 0:02:31.5]} 11. Bh4 {[%clk
0:02:34.4]} 11... d6 {[%clk 0:02:27.7]} 12. e5 {[%clk 0:02:16.2]} 12... Ne8
{[%clk 0:02:21]} 13. Bg3 {[%clk 0:01:53.6]} 13... Bxf3 {[%clk 0:02:08]} 14. gxf3
{[%clk 0:01:52]} 14... Nc6 {[%clk 0:02:08.6]} 15. Bh7+ {[%clk 0:01:30.4]} 15...
Kh8 {[%clk 0:02:07.4]} 16. Be4 {[%clk 0:01:31.3]} 16... Rc8 {[%clk 0:02:06.9]}
17. O-O {[%clk 0:01:26.1]} 17... a6 {[%clk 0:02:00.1]} 18. Rfe1 {[%clk
0:00:56.7]} 18... Qc7 {[%clk 0:01:59.4]} 19. f4 {[%clk 0:00:47.3]} 19... dxe5
{[%clk 0:01:58.6]} 20. fxe5 {[%clk 0:00:41.2]} 20... Nxe5 {[%clk 0:01:59.1]} 21.
Bg2 {[%clk 0:00:35.8]} 21... Bd6 {[%clk 0:01:55.7]} 22. Rxd6 {[%clk 0:00:32.5]}
22... Nxd6 {[%clk 0:01:54.8]} 23. Bxe5 {[%clk 0:00:31.1]} 23... Qc5 {[%clk
0:01:54.8]} 24. Qd2 {[%clk 0:00:24.8]} 24... Nf5 {[%clk 0:01:52.2]} 25. b3
{[%clk 0:00:21.4]} 25... Rfd8 {[%clk 0:01:52.4]} 26. Qf4 {[%clk 0:00:20.5]}
26... f6 {[%clk 0:01:52.5]} 27. Bxf6 {[%clk 0:00:11.6]} 27... gxf6 {[%clk
0:01:51.5]} 28. Rxe6 {[%clk 0:00:11.7]} 28... Rg8 {[%clk 0:01:45.3]} 29. Nd5
{[%clk 0:00:09.8]} 29... Rg5 {[%clk 0:01:45.9]} 30. Rxf6 {[%clk 0:00:09.1]}
30... Rcg8 {[%clk 0:01:45.3]} 31. Rxf5 {[%clk 0:00:06.6]} 31... Rxg2+ {[%clk
0:01:45.1]} 32. Kf1 {[%clk 0:00:07]} 32... Qc6 {[%clk 0:01:39]} 33. Rf6 {[%clk
0:00:06.5]} 33... Rg1+ {[%clk 0:01:38.6]} 34. Ke2 {[%clk 0:00:06.3]} 34... Qe8+
{[%clk 0:01:39.5]} 35. Ne3 {[%clk 0:00:04.9]} 35... Qh5+ {[%clk 0:01:38.8]} 36.
f3 {[%clk 0:00:03]} 36... R1g6 {[%clk 0:01:35]} 37. Rxg6 {[%clk 0:00:01.9]}
37... Rxg6 {[%clk 0:01:35.9]} 38. Qf8+ {[%clk 0:00:01.6]} 38... Kh7 {[%clk
0:01:36.3]} 39. Qf7+ {[%clk 0:00:01.8]} 39... Rg7 {[%clk 0:01:36.9]} 40. Qxh5
{[%clk 0:00:01.7]} 40... Re7 {[%clk 0:01:35.9]} 41. Qf5+ {[%clk 0:00:02.6]}
41... Kg7 {[%clk 0:01:35.7]} 42. Kf2 {[%clk 0:00:03.5]} 42... Re5 {[%clk
0:01:35.7]} 43. Qg4+ {[%clk 0:00:04.1]} 43... Kf6 {[%clk 0:01:35.4]} 44. Nd5+
{[%clk 0:00:05]} 44... Kf7 {[%clk 0:01:35.1]} 45. Qh4 {[%clk 0:00:05.5]} 45...
Re6 {[%clk 0:01:33.6]} 46. Qg4 {[%clk 0:00:05.5]} 1-0

[Event "*** Titled Tuesday Blitz"]
[Site "Chess.com"]
[Date "2020.03.03"]
[Round "5"]
[White "MartinCerveny"]
[Black "KacperPolOK"]
[Result "1-0"]
[WhiteElo "2621"]
[BlackElo "2418"]
[TimeControl "180+1"]
[EndTime "9:50:54 PST"]
[Termination "MartinCerveny won by checkmate"]

1. d4 {[%clk 0:03:00.9]} 1... e6 {[%clk 0:02:59.1]} 2. Nf3 {[%clk 0:02:59.6]}
2... f5 {[%clk 0:02:58.9]} 3. h3 {[%clk 0:02:57.1]} 3... Nf6 {[%clk 0:02:57]} 4.
g4 {[%clk 0:02:57.2]} 4... d5 {[%clk 0:02:57.4]} 5. Bg5 {[%clk 0:02:54.8]} 5...
Be7 {[%clk 0:02:55.7]} 6. e3 {[%clk 0:02:53]} 6... O-O {[%clk 0:02:55]} 7. c4
{[%clk 0:02:47.5]} 7... Ne4 {[%clk 0:02:33.9]} 8. Bf4 {[%clk 0:02:44.3]} 8...
Bb4+ {[%clk 0:02:22.2]} 9. Nbd2 {[%clk 0:02:39]} 9... Nxd2 {[%clk 0:02:16.3]}
10. Nxd2 {[%clk 0:02:37.8]} 10... Nc6 {[%clk 0:02:05.4]} 11. a3 {[%clk
0:02:27.9]} 11... Bxd2+ {[%clk 0:02:03.5]} 12. Qxd2 {[%clk 0:02:28.8]} 12... Bd7
{[%clk 0:01:56.7]} 13. cxd5 {[%clk 0:02:22.7]} 13... exd5 {[%clk 0:01:51.8]} 14.
g5 {[%clk 0:02:22.1]} 14... Be8 {[%clk 0:01:49.1]} 15. Be2 {[%clk 0:02:16.9]}
15... Kh8 {[%clk 0:01:47.5]} 16. h4 {[%clk 0:02:16.3]} 16... Rc8 {[%clk
0:01:45]} 17. h5 {[%clk 0:02:16.2]} 17... Qd7 {[%clk 0:01:42.5]} 18. h6 {[%clk
0:02:16.1]} 18... g6 {[%clk 0:01:42.2]} 19. Rc1 {[%clk 0:02:15.8]} 19... Nd8
{[%clk 0:01:40.1]} 20. Kf1 {[%clk 0:02:09.3]} 20... Ne6 {[%clk 0:01:39.5]} 21.
Be5+ {[%clk 0:02:09.4]} 21... Kg8 {[%clk 0:01:39]} 22. f4 {[%clk 0:02:10.3]}
22... a6 {[%clk 0:01:31.8]} 23. Kg2 {[%clk 0:02:08]} 23... Qe7 {[%clk
0:01:27.8]} 24. Bf3 {[%clk 0:02:03.7]} 24... c6 {[%clk 0:01:25.3]} 25. Bxd5
{[%clk 0:02:00.3]} 25... Bf7 {[%clk 0:01:20.4]} 26. Bf3 {[%clk 0:01:59.4]} 26...
Nc7 {[%clk 0:01:19.8]} 27. Bxc7 {[%clk 0:01:53.6]} 27... Rxc7 {[%clk 0:01:19]}
28. Rc5 {[%clk 0:01:52.3]} 28... Re8 {[%clk 0:01:07.1]} 29. Re5 {[%clk
0:01:51.1]} 29... Qd8 {[%clk 0:01:07.6]} 30. Rxe8+ {[%clk 0:01:44.2]} 30... Qxe8
{[%clk 0:01:07.6]} 31. Rc1 {[%clk 0:01:43.2]} 31... Re7 {[%clk 0:01:07.4]} 32.
Kf2 {[%clk 0:01:43.1]} 32... Qd7 {[%clk 0:01:04.9]} 33. Rc5 {[%clk 0:01:40.9]}
33... Bd5 {[%clk 0:01:03.8]} 34. Bxd5+ {[%clk 0:01:39]} 34... cxd5 {[%clk
0:01:04.1]} 35. Qc3 {[%clk 0:01:35.8]} 35... Qe6 {[%clk 0:01:01.1]} 36. Qd3
{[%clk 0:01:27.7]} 36... b6 {[%clk 0:00:56.1]} 37. Rc3 {[%clk 0:01:26]} 37... a5
{[%clk 0:00:56.1]} 38. Qc2 {[%clk 0:01:09.4]} 38... Kf7 {[%clk 0:00:55.6]} 39.
Ke2 {[%clk 0:01:08.2]} 39... b5 {[%clk 0:00:46.3]} 40. b4 {[%clk 0:01:05]} 40...
axb4 {[%clk 0:00:45]} 41. axb4 {[%clk 0:01:05.9]} 41... Qa6 {[%clk 0:00:45]} 42.
Rc6 {[%clk 0:00:58.4]} 42... Qa1 {[%clk 0:00:43.8]} 43. Rf6+ {[%clk 0:00:57.6]}
43... Ke8 {[%clk 0:00:40.6]} 44. Qc8# {[%clk 0:00:57]} 1-0

[Event "*** Titled Tuesday Blitz"]
[Site "Chess.com"]
[Date "2020.03.03"]
[Round "5"]
[White "MergenKakabaev"]
[Black "bascheyaro"]
[Result "1-0"]
[WhiteElo "2497"]
[BlackElo "2743"]
[TimeControl "180+1"]
[EndTime "9:51:05 PST"]
[Termination "MergenKakabaev won by checkmate"]

1. e4 {[%clk 0:03:00]} 1... e6 {[%clk 0:03:00]} 2. d4 {[%clk 0:02:59.7]} 2... d5
{[%clk 0:03:00.1]} 3. e5 {[%clk 0:02:59.6]} 3... c5 {[%clk 0:03:00.3]} 4. c3
{[%clk 0:02:59.4]} 4... Qb6 {[%clk 0:03:00.4]} 5. Nf3 {[%clk 0:02:59.4]} 5...
Bd7 {[%clk 0:03:00.7]} 6. a3 {[%clk 0:02:59.1]} 6... Bb5 {[%clk 0:03:00.5]} 7.
g3 {[%clk 0:02:59]} 7... Bxf1 {[%clk 0:02:59.6]} 8. Kxf1 {[%clk 0:02:59.9]} 8...
Nc6 {[%clk 0:02:59.2]} 9. Kg2 {[%clk 0:02:59.7]} 9... h5 {[%clk 0:02:58.2]} 10.
h4 {[%clk 0:02:57.4]} 10... Nh6 {[%clk 0:02:58]} 11. b4 {[%clk 0:02:57.3]} 11...
cxd4 {[%clk 0:02:58.2]} 12. Bxh6 {[%clk 0:02:56.3]} 12... Rxh6 {[%clk
0:02:57.5]} 13. cxd4 {[%clk 0:02:56.7]} 13... a5 {[%clk 0:02:57.5]} 14. bxa5
{[%clk 0:02:54.8]} 14... Nxa5 {[%clk 0:02:57.4]} 15. Nc3 {[%clk 0:02:49]} 15...
Qc6 {[%clk 0:02:52.7]} 16. Qd3 {[%clk 0:02:34.9]} 16... Qc4 {[%clk 0:02:35.7]}
17. Qxc4 {[%clk 0:02:32.9]} 17... Nxc4 {[%clk 0:02:36.6]} 18. a4 {[%clk
0:02:32.8]} 18... b6 {[%clk 0:02:33]} 19. Nb5 {[%clk 0:02:32.7]} 19... Kd7
{[%clk 0:02:31.4]} 20. Rhc1 {[%clk 0:02:30.6]} 20... Bb4 {[%clk 0:02:24.8]} 21.
Ng5 {[%clk 0:02:17.8]} 21... Rf8 {[%clk 0:02:17.1]} 22. Rc2 {[%clk 0:02:15.1]}
22... f6 {[%clk 0:02:16.6]} 23. Nf3 {[%clk 0:02:12.1]} 23... Ra8 {[%clk
0:02:06.8]} 24. Re2 {[%clk 0:01:59.2]} 24... Rg6 {[%clk 0:02:04.8]} 25. Rea2
{[%clk 0:01:48.2]} 25... Rg4 {[%clk 0:02:03.9]} 26. Rb1 {[%clk 0:01:47.7]} 26...
Ba5 {[%clk 0:02:02.2]} 27. Na3 {[%clk 0:01:40.4]} 27... fxe5 {[%clk 0:01:57.4]}
28. Nxc4 {[%clk 0:01:38.9]} 28... dxc4 {[%clk 0:01:46.7]} 29. Nxe5+ {[%clk
0:01:38.7]} 29... Kd6 {[%clk 0:01:47.2]} 30. Nxg4 {[%clk 0:01:38.7]} 30... hxg4
{[%clk 0:01:48.1]} 31. Rb5 {[%clk 0:01:37.8]} 31... c3 {[%clk 0:01:48.2]} 32.
Rc2 {[%clk 0:01:36.9]} 32... Rc8 {[%clk 0:01:47]} 33. Rg5 {[%clk 0:01:31.4]}
33... Rc4 {[%clk 0:01:46.6]} 34. Rxg4 {[%clk 0:01:31]} 34... Rxa4 {[%clk
0:01:46.7]} 35. h5 {[%clk 0:01:26]} 35... b5 {[%clk 0:01:46.4]} 36. Rxg7 {[%clk
0:01:24.2]} 36... Rxd4 {[%clk 0:01:44.8]} 37. h6 {[%clk 0:01:23.3]} 37... Rd5
{[%clk 0:01:39.3]} 38. g4 {[%clk 0:01:20.4]} 38... Rd2 {[%clk 0:01:34.8]} 39. h7
{[%clk 0:00:59.9]} 39... Rxc2 {[%clk 0:01:34.5]} 40. h8=Q {[%clk 0:00:59.1]}
40... Bb6 {[%clk 0:01:33.3]} 41. Qb8+ {[%clk 0:00:59]} 41... Kc5 {[%clk
0:01:32]} 42. Qe5+ {[%clk 0:00:47.4]} 42... Kc4 {[%clk 0:01:31.9]} 43. Qe4+
{[%clk 0:00:47.4]} 43... Kb3 {[%clk 0:01:32.1]} 44. Qxe6+ {[%clk 0:00:47.7]}
44... Kb2 {[%clk 0:01:32.1]} 45. Qxb6 {[%clk 0:00:47.9]} 45... Rd2 {[%clk
0:01:31.4]} 46. Qxb5+ {[%clk 0:00:47.8]} 46... Kc1 {[%clk 0:01:32.3]} 47. Rc7
{[%clk 0:00:47.6]} 47... c2 {[%clk 0:01:31.9]} 48. Qf1+ {[%clk 0:00:47.6]} 48...
Kb2 {[%clk 0:01:31.2]} 49. Rb7+ {[%clk 0:00:47.4]} 49... Kc3 {[%clk 0:01:31.6]}
50. Qc1 {[%clk 0:00:47]} 50... Rd3 {[%clk 0:01:29]} 51. Rc7+ {[%clk 0:00:46.7]}
51... Kd4 {[%clk 0:01:29.3]} 52. Qxc2 {[%clk 0:00:46.6]} 52... Ke4 {[%clk
0:01:29.6]} 53. Qxd3+ {[%clk 0:00:45.6]} 53... Kf4 {[%clk 0:01:29.7]} 54. Qf3+
{[%clk 0:00:45]} 54... Kg5 {[%clk 0:01:29.8]} 55. Qf5+ {[%clk 0:00:45.3]} 55...
Kh4 {[%clk 0:01:30.7]} 56. Rh7# {[%clk 0:00:45.9]} 1-0

[Event "*** Titled Tuesday Blitz"]
[Site "Chess.com"]
[Date "2020.03.03"]
[Round "5"]
[White "RojonR"]
[Black "SHIVACalypso"]
[Result "1-0"]
[WhiteElo "2392"]
[BlackElo "2190"]
[TimeControl "180+1"]
[EndTime "9:51:07 PST"]
[Termination "RojonR won by resignation"]

1. e4 {[%clk 0:03:00.9]} 1... e6 {[%clk 0:03:00.2]} 2. d4 {[%clk 0:03:00]} 2...
d5 {[%clk 0:03:00.7]} 3. e5 {[%clk 0:02:57.2]} 3... c5 {[%clk 0:03:00.2]} 4. c3
{[%clk 0:02:49.3]} 4... Nc6 {[%clk 0:03:00]} 5. Nf3 {[%clk 0:02:49.1]} 5... Qb6
{[%clk 0:02:59.1]} 6. Na3 {[%clk 0:02:49]} 6... cxd4 {[%clk 0:02:55.1]} 7. cxd4
{[%clk 0:02:47.4]} 7... Bxa3 {[%clk 0:02:52.2]} 8. bxa3 {[%clk 0:02:43.4]} 8...
f6 {[%clk 0:02:47.7]} 9. Bd3 {[%clk 0:02:39]} 9... fxe5 {[%clk 0:02:39.3]} 10.
dxe5 {[%clk 0:02:38.8]} 10... Qa5+ {[%clk 0:02:29.9]} 11. Qd2 {[%clk 0:02:38.5]}
11... Qxd2+ {[%clk 0:02:28.7]} 12. Bxd2 {[%clk 0:02:39.4]} 12... Bd7 {[%clk
0:02:23.8]} 13. Rb1 {[%clk 0:02:36.7]} 13... b6 {[%clk 0:02:20.1]} 14. O-O
{[%clk 0:02:35]} 14... Nge7 {[%clk 0:02:19.5]} 15. Rfc1 {[%clk 0:02:24.9]} 15...
g6 {[%clk 0:02:07.2]} 16. Bg5 {[%clk 0:02:18.6]} 16... Rf8 {[%clk 0:01:33.8]}
17. Rb2 {[%clk 0:02:01.6]} 17... Rc8 {[%clk 0:01:17.1]} 18. Rbc2 {[%clk
0:02:00.5]} 18... Kf7 {[%clk 0:01:13]} 19. Bb5 {[%clk 0:01:45.6]} 19... Nb8
{[%clk 0:00:38.4]} 20. Bxd7 {[%clk 0:01:30.2]} 20... Nxd7 {[%clk 0:00:30.3]} 21.
Rc7 {[%clk 0:01:12.5]} 21... Rfd8 {[%clk 0:00:19.8]} 22. Nd4 {[%clk 0:00:53.5]}
22... Rxc7 {[%clk 0:00:18.9]} 23. Rxc7 {[%clk 0:00:51.6]} 23... h6 {[%clk
0:00:16.9]} 24. Bxe7 {[%clk 0:00:49.6]} 24... Kxe7 {[%clk 0:00:16.9]} 25. Nc6+
{[%clk 0:00:49.2]} 25... Ke8 {[%clk 0:00:17.1]} 26. Nxd8 {[%clk 0:00:46.5]}
26... Kxd8 {[%clk 0:00:18]} 27. Rxa7 {[%clk 0:00:46.2]} 27... Kc8 {[%clk
0:00:18.2]} 28. f4 {[%clk 0:00:41.2]} 28... g5 {[%clk 0:00:16.1]} 29. g3 {[%clk
0:00:40.9]} 29... gxf4 {[%clk 0:00:14.9]} 30. gxf4 {[%clk 0:00:41.8]} 1-0